[Event "-chT Youth Countries 2019"]
[Site "Wuerzburg"]
[Date "2019.10.02"]
[Round "2.3"]
[White "Tschernatsch, Johannes"]
[Black "Hecht, Jonas"]
[Result "1-0"]
[ECO "C90"]
[WhiteElo "2132"]
[BlackElo "1775"]
[Annotator "NA"]
[PlyCount "67"]
[EventDate "2019.10.02"]
[EventType "team-tourn"]
[EventRounds "7"]
[EventCountry "GER"]
[SourceTitle "playchess.com"]
[Source "ChessBase"]
[SourceQuality "1"]
[WhiteTeam "SG Brandenburg / Berlin"]
[BlackTeam "Baden 2"]
[TimeControl "40/5400+30:1800+30"]

1. e4 {[%emt 0:00:00]} e5 {[%emt 0:00:00]} 2. Nf3 {[%emt 0:00:00]} Nc6 {[%emt 0:00:00]} 3. Bb5 {[%emt 0:00:00]} a6 {[%emt 0:00:00]} 4. Ba4 {[%emt 0:00:00]} Nf6 {[%emt 0:00:00]} 5. O-O {[%emt 0:00:00]} Be7 {[%emt 0:00:00]} 6. Re1 {[%emt 0:00:04]} b5 {[%emt 0:00:16]} 7. Bb3 {[%emt 0:00:06]} O-O {[%emt 0:00:05]} 8. d3 {[%emt 0:00:24]} d6 {[%emt 0:00:17]} 9. c3 {[%emt 0:00:13]} Re8 {[%emt 0:01:11]} 10. Nbd2 {[%emt 0:01:40]} h6 {[%emt 0:04:16]} 11. Nf1 {[%emt 0:00:56]} Bf8 {[%emt 0:00:52]} 12. Ng3 {[%emt 0:00:29]} Ne7 {[%emt 0:03:41]} 13. a4 {[%emt 0:00:31]} Bd7 {[%emt 0:01:07]} 14. d4 {[%emt 0:02:25]} exd4 {[%emt 0:00:35]} 15. cxd4 {[%emt 0:04:17]} Ng6 {[%emt 0:00:44]} 16. h3 {[%emt 0:08:39]} Bc6 {[%emt 0:02:21]} 17. Qc2 {[%emt 0:02:11]} Bb7 {[%emt 0:00:59]} 18. d5 {[%emt 0:08:38]} Ne5 {[%emt 0:00:55]} 19. Nd4 {[%emt 0:04:01]} Qd7 {[%emt 0:01:25]} 20. f4 {[%emt 0:05:35]} Ng6 {[%emt 0:00:29]} 21. Bd2 {[%emt 0:01:15]} h5 {[%emt 0:02:39]} 22. Ngf5 {[%emt 0:06:19]} h4 {[%emt 0:02:22]} 23. Qd3 {[%emt 0:04:41]} Nh5 {[%emt 0:05:24]} 24. Qf3 {[%emt 0:00:45]} Nf6 {[%emt 0:05:29]} 25. Bc3 {[%emt 0:03:14]} Rab8 {[%emt 0:00:30]} 26. Nc6 {[%emt 0:01:11]} Bxc6 {[%emt 0:08:54]} 27. dxc6 {[%emt 0:01:44]} Qd8 {[%emt 0:00:30]} 28. e5 {[%emt 0:00:30]} dxe5 {[%emt 0:01:43]} 29. fxe5 {[%emt 0:00:30]} Bc5+ {[%emt 0:00:17]} 30. Kh1 {[%emt 0:03:05]} b4 {[%emt 0:00:50]} 31. Rad1 Qc8 {[%emt 0:06:28]} 32. Nh6+ {[%emt 0:10:06]} Kf8 {[%emt 0:00:30]} 33. exf6 {[%emt 0:03:37]} bxc3 {[%emt 0:01:53]} 34. Qd5 {[%emt 0:01:32] normal} 1-0

[Event "-chT Youth Countries 2019"]
[Site "Wuerzburg"]
[Date "2019.10.02"]
[Round "2.3"]
[White "Chassard, Cedric"]
[Black "Koehler, Lukas"]
[Result "0-1"]
[ECO "B15"]
[WhiteElo "1929"]
[BlackElo "2040"]
[Annotator "NA"]
[PlyCount "148"]
[EventDate "2019.10.02"]
[EventType "team-tourn"]
[EventRounds "7"]
[EventCountry "GER"]
[SourceTitle "playchess.com"]
[Source "ChessBase"]
[SourceQuality "1"]
[WhiteTeam "Saarland"]
[BlackTeam "Bayern 2"]
[TimeControl "40/5400+30:1800+30"]

1. e4 {[%emt 0:00:00]} c6 {[%emt 0:00:00]} 2. d4 {[%emt 0:00:00]} d5 {[%emt 0:00:00]} 3. Nd2 {[%emt 0:00:00]} dxe4 {[%emt 0:00:00]} 4. Nxe4 {[%emt 0:00:00]} Nf6 {[%emt 0:00:10]} 5. Nxf6+ {[%emt 0:00:00]} exf6 {[%emt 0:00:11]} 6. Nf3 {[%emt 0:00:30]} Bd6 {[%emt 0:00:26]} 7. Bd3 {[%emt 0:00:30]} O-O {[%emt 0:00:34]} 8. O-O {[%emt 0:00:21]} Bg4 {[%emt 0:02:14]} 9. c3 {[%emt 0:02:33]} Qc7 {[%emt 0:02:22]} 10. h3 {[%emt 0:00:32]} Bh5 {[%emt 0:00:13]} 11. Be2 {[%emt 0:08:47]} Re8 {[%emt 0:02:34]} 12. Re1 {[%emt 0:02:39]} Nd7 {[%emt 0:06:23]} 13. Be3 {[%emt 0:03:10]} Nb6 {[%emt 0:11:39]} 14. Nh4 {[%emt 0:04:17]} Bxe2 {[%emt 0:00:57]} 15. Rxe2 {[%emt 0:00:30]} g6 {[%emt 0:09:10]} 16. Qd3 {[%emt 0:02:47]} Nd5 {[%emt 0:08:06]} 17. Rae1 {[%emt 0:00:19]} Qd7 {[%emt 0:02:09]} 18. Bd2 {[%emt 0:02:40]} f5 {[%emt 0:07:56]} 19. Nf3 {[%emt 0:02:02]} Nf6 {[%emt 0:11:01]} 20. Rxe8+ {[%emt 0:01:26]} Rxe8 {[%emt 0:00:35]} 21. Rxe8+ {[%emt 0:00:11]} Qxe8 {[%emt 0:00:47]} 22. Qe3 {[%emt 0:00:05]} Qe4 {[%emt 0:04:35]} 23. Qxe4 {[%emt 0:04:18]} fxe4 {[%emt 0:01:36]} 24. Ne1 {[%emt 0:01:54]} Nd7 {[%emt 0:02:15]} 25. Kf1 {[%emt 0:01:31]} b5 {[%emt 0:03:00]} 26. Ke2 {[%emt 0:01:27]} f5 {[%emt 0:03:48]} 27. Nc2 {[%emt 0:01:57]} f4 {[%emt 0:04:08]} 28. b3 {[%emt 0:15:50]} Nb6 {[%emt 0:01:20]} 29. Be1 {[%emt 0:07:01]} Kf7 {[%emt 0:02:52]} 30. g3 {[%emt 0:00:43]} g5 {[%emt 0:01:50]} 31. Kf1 {[%emt 0:04:37]} Ke6 {[%emt 0:01:06]} 32. h4 {[%emt 0:01:20]} h6 {[%emt 0:07:28]} 33. hxg5 {[%emt 0:00:46]} hxg5 {[%emt 0:00:09]} 34. gxf4 {[%emt 0:00:16]} gxf4 {[%emt 0:00:12]} 35. Ke2 {[%emt 0:04:36]} Kd5 {[%emt 0:01:49]} 36. a3 {[%emt 0:02:02]} a5 {[%emt 0:01:06]} 37. a4 {[%emt 0:03:20]} Be7 {[%emt 0:02:28]} 38. axb5 {[%emt 0:00:49]} cxb5 {[%emt 0:00:10]} 39. Bd2 {[%emt 0:08:01]} Bd6 {[%emt 0:00:22]} 40. Bc1 {[%emt 0:02:22]} a4 {[%emt 0:01:20]} 41. bxa4 {[%emt 0:32:27]} Nxa4 {[%emt 0:06:02]} 42. Kd2 {[%emt 0:00:00]} Nb6 {[%emt 0:04:03]} 43. Ke2 {[%emt 0:00:00]} Nc4 {[%emt 0:01:38]} 44. f3 {[%emt 0:00:00]} e3 {[%emt 0:02:49]} 45. Kd3 {[%emt 0:00:00]} Ke6 {[%emt 0:01:13]} 46. Ke2 {[%emt 0:00:00]} Kd5 {[%emt 0:02:26]} 47. Kd3 {[%emt 0:00:00]} Be7 {[%emt 0:00:21]} 48. Ke2 {[%emt 0:00:00]} Na5 {[%emt 0:04:48]} 49. Ba3 {[%emt 0:00:00]} Bxa3 {[%emt 0:01:36]} 50. Nxa3 {[%emt 0:00:00]} b4 {[%emt 0:00:22]} 51. cxb4 {[%emt 0:00:00]} Nc6 {[%emt 0:00:58]} 52. Kd3 {[%emt 0:00:00]} Nxb4+ {[%emt 0:07:12]} 53. Kc3 {[%emt 0:00:00]} Na2+ {[%emt 0:00:09]} 54. Kd3 {[%emt 0:00:00]} Nc1+ {[%emt 0:00:17]} 55. Kc2 {[%emt 0:00:00]} Ne2 {[%emt 0:00:23]} 56. Kd3 {[%emt 0:00:00]} Nxd4 {[%emt 0:00:19]} 57. Nb1 {[%emt 0:00:00]} Nxf3 {[%emt 0:00:12]} 58. Nc3+ {[%emt 0:00:00]} Ke5 {[%emt 0:00:09]} 59. Nd1 {[%emt 0:00:00]} Ne1+ {[%emt 0:00:25]} 60. Ke2 {[%emt 0:00:00]} Ng2 {[%emt 0:01:01]} 61. Kf3 {[%emt 0:01:43]} Nh4+ {[%emt 0:00:39]} 62. Ke2 {[%emt 0:00:31]} Kd4 {[%emt 0:00:19]} 63. Kf1 {[%emt 0:03:06]} f3 {[%emt 0:00:25]} 64. Nb2 {[%emt 0:00:46]} e2+ {[%emt 0:01:06]} 65. Kf2 {[%emt 0:00:10]} Ng2 {[%emt 0:00:09]} 66. Kxf3 {[%emt 0:01:03]} e1=Q {[%emt 0:00:13]} 67. Kxg2 {[%emt 0:00:11]} Qe2+ {[%emt 0:00:08]} 68. Kg3 {[%emt 0:00:05]} Qxb2 {[%emt 0:00:05]} 69. Kf4 {[%emt 0:00:04]} Qf2+ {[%emt 0:00:05]} 70. Kg5 {[%emt 0:00:01]} Ke5 {[%emt 0:00:07]} 71. Kg6 {[%emt 0:00:06]} Qf6+ {[%emt 0:00:10]} 72. Kh5 {[%emt 0:00:16]} Qg7 {[%emt 0:00:07]} 73. Kh4 {[%emt 0:00:02]} Kf4 {[%emt 0:00:07]} 74. Kh5 {[%emt 0:00:02]} Qg5# {normal} 0-1

[Event "-chT Youth Countries 2019"]
[Site "Wuerzburg"]
[Date "2019.10.02"]
[Round "2.3"]
[White "Riegel, Arinna"]
[Black "Gallasch, Jonas"]
[Result "0-1"]
[ECO "A04"]
[WhiteElo "1894"]
[BlackElo "2099"]
[Annotator "NA"]
[PlyCount "96"]
[EventDate "2019.10.02"]
[EventType "team-tourn"]
[EventRounds "7"]
[EventCountry "GER"]
[SourceTitle "playchess.com"]
[Source "ChessBase"]
[SourceQuality "1"]
[WhiteTeam "Baden 1"]
[BlackTeam "Nordrhein-Westfalen"]
[TimeControl "40/5400+30:1800+30"]

1. Nf3 {[%emt 0:00:00]} c5 {[%emt 0:00:00]} 2. g3 {[%emt 0:00:00]} Nc6 {[%emt 0:00:04]} 3. d4 {[%emt 0:00:18]} cxd4 {[%emt 0:06:13]} 4. Nxd4 {[%emt 0:00:06]} e5 {[%emt 0:00:46]} 5. Nb3 {[%emt 0:00:05]} d5 {[%emt 0:02:13]} 6. Bg2 {[%emt 0:00:43]} Be6 {[%emt 0:00:58]} 7. Nc3 {[%emt 0:13:25]} Bb4 {[%emt 0:10:04]} 8. Bd2 {[%emt 0:01:22]} Nf6 {[%emt 0:03:41]} 9. O-O {[%emt 0:10:06]} h6 {[%emt 0:06:08]} 10. a3 {[%emt 0:05:04]} Be7 {[%emt 0:03:44]} 11. Na4 {[%emt 0:11:51]} b6 {[%emt 0:04:50]} 12. c4 {[%emt 0:07:38]} Rc8 {[%emt 0:02:22]} 13. cxd5 {[%emt 0:02:31]} Nxd5 {[%emt 0:01:12]} 14. Rc1 {[%emt 0:13:26]} O-O {[%emt 0:03:49]} 15. Nc3 {[%emt 0:09:12]} Nf6 {[%emt 0:04:38]} 16. Na1 {[%emt 0:03:37]} Na5 {[%emt 0:06:35]} 17. Ne4 {[%emt 0:02:52]} Nxe4 {[%emt 0:07:57]} 18. Bxe4 {[%emt 0:00:01]} Qd4 {[%emt 0:00:25]} 19. Bxa5 {[%emt 0:05:45]} Qxe4 {[%emt 0:00:28]} 20. Bc3 {[%emt 0:02:14]} Bh3 {[%emt 0:03:49]} 21. f3 {[%emt 0:00:39]} Qe3+ {[%emt 0:00:17]} 22. Kh1 {[%emt 0:01:26]} Rfd8 {[%emt 0:05:39]} 23. Nc2 {[%emt 0:02:11]} Qg5 {[%emt 0:00:10]} 24. Qe1 {[%emt 0:01:24]} Bxf1 {[%emt 0:00:37]} 25. Qxf1 {[%emt 0:00:01]} Rd7 {[%emt 0:06:39]} 26. Qe1 {[%emt 0:03:48]} Rcd8 {[%emt 0:04:26]} 27. Rb1 {[%emt 0:00:39]} Qg6 {[%emt 0:01:03]} 28. Rc1 {[%emt 0:01:48]} Bg5 {[%emt 0:01:21]} 29. e3 {[%emt 0:00:10]} Qh5 {[%emt 0:07:01]} 30. Qe2 {[%emt 0:00:44]} e4 {[%emt 0:00:39]} 31. g4 {[%emt 0:01:13]} exf3 {[%emt 0:00:13]} 32. Qxf3 {[%emt 0:00:11]} Qg6 {[%emt 0:00:17]} 33. Nd4 {[%emt 0:00:15]} Kh7 {[%emt 0:02:28]} 34. Nc6 {[%emt 0:01:11]} Rd1+ {[%emt 0:02:05]} 35. Rxd1 {[%emt 0:00:35]} Rxd1+ {[%emt 0:00:07]} 36. Kg2 {[%emt 0:00:34]} Qc2+ {[%emt 0:02:42]} 37. Kh3 {[%emt 0:00:22]} Qd3 {[%emt 0:00:38]} 38. Bd4 {[%emt 0:00:42]} Rf1 {[%emt 0:00:27]} 39. Qg2 {[%emt 0:00:47]} Bxe3 {[%emt 0:01:06]} 40. Nb4 {[%emt 0:00:12]} Qd1 {[%emt 0:01:22]} 41. Be5 {[%emt 0:07:48]} Qf3+ {[%emt 0:03:27]} 42. Qg3 {[%emt 0:00:58]} Qxg3+ {[%emt 0:01:53]} 43. Kxg3 {[%emt 0:00:31]} Rd1 {[%emt 0:02:22]} 44. Nc6 {[%emt 0:01:42]} a5 {[%emt 0:01:18]} 45. Bc3 {[%emt 0:01:31]} Bc5 {[%emt 0:00:36]} 46. Kf3 {[%emt 0:02:35]} Rd3+ {[%emt 0:00:58]} 47. Kg2 {[%emt 0:00:36]} Bxa3 {[%emt 0:01:28]} 48. Ne5 {[%emt 0:03:15]} Bxb2 {normal} 0-1

[Event "-chT Youth Countries 2019"]
[Site "Wuerzburg"]
[Date "2019.10.02"]
[Round "2.3"]
[White "Petri, Ben-Luca"]
[Black "Grund, Sebastian"]
[Result "0-1"]
[ECO "B38"]
[WhiteElo "1857"]
[BlackElo "2054"]
[Annotator "NA"]
[PlyCount "68"]
[EventDate "2019.10.02"]
[EventType "team-tourn"]
[EventRounds "7"]
[EventCountry "GER"]
[SourceTitle "playchess.com"]
[Source "ChessBase"]
[SourceQuality "1"]
[WhiteTeam "SG Bremen / Niedersachsen"]
[BlackTeam "Thueringen"]
[TimeControl "40/5400+30:1800+30"]

1. e4 {[%emt 0:00:00]} c5 {[%emt 0:00:00]} 2. Nf3 {[%emt 0:00:00]} Nc6 {[%emt 0:00:00]} 3. d4 {[%emt 0:00:00]} cxd4 {[%emt 0:00:00]} 4. Nxd4 {[%emt 0:00:00]} g6 {[%emt 0:00:00]} 5. c4 {[%emt 0:00:00]} Bg7 {[%emt 0:00:01]} 6. Be3 {[%emt 0:00:06]} Nf6 {[%emt 0:00:06]} 7. Nc3 {[%emt 0:00:07]} O-O {[%emt 0:00:07]} 8. Be2 {[%emt 0:00:03]} d6 {[%emt 0:00:08]} 9. O-O {[%emt 0:00:02]} Bd7 {[%emt 0:00:19]} 10. f3 {[%emt 0:00:03]} Nxd4 {[%emt 0:00:25]} 11. Bxd4 {[%emt 0:00:10]} a5 {[%emt 0:00:08]} 12. Nd5 {[%emt 0:01:13]} Nxd5 {[%emt 0:02:37]} 13. cxd5 {[%emt 0:00:10]} Bxd4+ {[%emt 0:06:51]} 14. Qxd4 {[%emt 0:00:03]} a4 {[%emt 0:00:24]} 15. Rac1 {[%emt 0:01:58]} Qa5 {[%emt 0:00:34]} 16. h4 {[%emt 0:11:25]} Rac8 {[%emt 0:04:00]} 17. a3 {[%emt 0:07:08]} Rc7 {[%emt 0:09:00]} 18. Rxc7 {[%emt 0:00:14]} Qxc7 {[%emt 0:00:04]} 19. Bd3 {[%emt 0:01:30]} Rc8 {[%emt 0:02:47]} 20. Kh2 {[%emt 0:03:23]} Qa5 {[%emt 0:12:57]} 21. Rd1 {[%emt 0:04:42]} Bb5 {[%emt 0:01:06]} 22. Bxb5 {[%emt 0:01:01]} Qxb5 {[%emt 0:00:06]} 23. Rd2 {[%emt 0:00:48]} Rc4 {[%emt 0:04:34]} 24. Qf2 {[%emt 0:01:29]} Qb3 {[%emt 0:04:59]} 25. g4 {[%emt 0:01:47]} Rc1 {[%emt 0:01:34]} 26. Kg2 {[%emt 0:02:12]} Qc4 {[%emt 0:01:34]} 27. h5 {[%emt 0:01:17]} g5 {[%emt 0:01:34]} 28. Qe2 {[%emt 0:01:19]} b5 {[%emt 0:11:56]} 29. Qxc4 {[%emt 0:00:16]} bxc4 {[%emt 0:00:16]} 30. Rd4 {[%emt 0:03:43]} Kg7 31. Kg3 {[%emt 0:02:26]} Kf6 {[%emt 0:02:29]} 32. f4 {[%emt 0:00:57]} c3 {[%emt 0:00:46]} 33. bxc3 {[%emt 0:01:26]} Rxc3+ {[%emt 0:00:06]} 34. Kf2 {[%emt 0:00:06]} Rxa3 {[%emt 0:00:10] normal} 0-1

[Event "-chT Youth Countries 2019"]
[Site "Wuerzburg"]
[Date "2019.10.02"]
[Round "2.4"]
[White "Hommer, Jeremy"]
[Black "Lohvinov, Petro"]
[Result "1-0"]
[ECO "A45"]
[WhiteElo "2133"]
[BlackElo "2117"]
[Annotator "NA"]
[PlyCount "52"]
[EventDate "2019.10.02"]
[EventType "team-tourn"]
[EventRounds "7"]
[EventCountry "GER"]
[SourceTitle "playchess.com"]
[Source "ChessBase"]
[SourceQuality "1"]
[WhiteTeam "Niedersachsen"]
[BlackTeam "Bayern 1"]
[TimeControl "40/5400+30:1800+30"]

1. d4 {[%emt 0:00:00]} Nf6 {[%emt 0:00:00]} 2. Bf4 {[%emt 0:00:00]} g6 {[%emt 0:00:00]} 3. Nc3 {[%emt 0:00:00]} d5 {[%emt 0:00:00]} 4. e3 {[%emt 0:00:00]} Bg7 {[%emt 0:00:00]} 5. h4 {[%emt 0:00:04]} c6 {[%emt 0:09:52]} 6. Nf3 {[%emt 0:04:40]} Bg4 {[%emt 0:00:11]} 7. Be2 {[%emt 0:02:37]} Bxf3 {[%emt 0:00:25]} 8. Bxf3 {[%emt 0:00:26]} h5 {[%emt 0:04:34]} 9. Qd2 {[%emt 0:07:15]} Nbd7 {[%emt 0:01:10]} 10. O-O-O {[%emt 0:01:48]} b5 {[%emt 0:06:23]} 11. Rdg1 {[%emt 0:22:41]} Nb6 {[%emt 0:18:42]} 12. g4 {[%emt 0:07:24]} b4 {[%emt 0:11:21]} 13. Ne2 {[%emt 0:03:35]} Nc4 {[%emt 0:06:30]} 14. Qd3 {[%emt 0:04:47]} Qa5 {[%emt 0:02:43]} 15. Qb3 {[%emt 0:07:12]} hxg4 {[%emt 0:01:48]} 16. Bg2 {[%emt 0:00:46]} Nd7 {[%emt 0:09:06]} 17. h5 {[%emt 0:10:40]} e5 {[%emt 0:05:03]} 18. dxe5 {[%emt 0:01:37]} Nc5 {[%emt 0:00:59]} 19. Qxc4 {[%emt 0:00:33]} dxc4 {[%emt 0:00:01]} 20. Bxc6+ {[%emt 0:00:10]} Ke7 {[%emt 0:02:26]} 21. h6 {[%emt 0:03:32]} Ne6 {[%emt 0:13:03]} 22. hxg7 {[%emt 0:00:40]} Rxh1 {[%emt 0:00:16]} 23. Rxh1 {[%emt 0:00:59]} Rg8 {[%emt 0:02:29]} 24. Nd4 {[%emt 0:06:19]} Nxf4 {[%emt 0:03:59]} 25. exf4 {[%emt 0:00:48]} Rd8 {[%emt 0:00:55]} 26. Be8 {[%emt 0:02:59]} Qc5 {[%emt 0:00:00] normal} 1-0

[Event "-chT Youth Countries 2019"]
[Site "Wuerzburg"]
[Date "2019.10.02"]
[Round "2.4"]
[White "Lutz, Ruben"]
[Black "Ermitsch, Magnus"]
[Result "1-0"]
[ECO "A46"]
[WhiteElo "2112"]
[BlackElo "1671"]
[Annotator "NA"]
[PlyCount "61"]
[EventDate "2019.10.02"]
[EventType "team-tourn"]
[EventRounds "7"]
[EventCountry "GER"]
[SourceTitle "playchess.com"]
[Source "ChessBase"]
[SourceQuality "1"]
[WhiteTeam "Sachsen"]
[BlackTeam "Berlin"]
[TimeControl "40/5400+30:1800+30"]

1. d4 {[%emt 0:00:00]} Nf6 {[%emt 0:00:10]} 2. Nf3 {[%emt 0:00:00]} e6 {[%emt 0:00:38]} 3. Bf4 {[%emt 0:00:20]} d5 {[%emt 0:00:44]} 4. e3 {[%emt 0:00:35]} c5 {[%emt 0:00:33]} 5. c3 {[%emt 0:00:08]} Nc6 {[%emt 0:00:44]} 6. Nbd2 {[%emt 0:00:24]} Bd6 {[%emt 0:00:33]} 7. Bg3 {[%emt 0:00:13]} O-O {[%emt 0:00:51]} 8. Bd3 {[%emt 0:00:10]} Re8 {[%emt 0:02:18]} 9. Ne5 {[%emt 0:05:06]} Qc7 {[%emt 0:05:12]} 10. f4 {[%emt 0:01:35]} Ne7 {[%emt 0:01:48]} 11. O-O {[%emt 0:06:02]} Nf5 {[%emt 0:00:46]} 12. Bf2 {[%emt 0:00:22]} c4 {[%emt 0:06:52]} 13. Bc2 {[%emt 0:00:46]} Qe7 {[%emt 0:02:09]} 14. g4 {[%emt 0:01:36]} a5 {[%emt 0:09:57]} 15. gxf5 {[%emt 0:01:07]} exf5 {[%emt 0:00:06]} 16. Ba4 {[%emt 0:06:38]} Rf8 {[%emt 0:01:29]} 17. Bh4 {[%emt 0:01:45]} Qe6 {[%emt 0:01:35]} 18. Qe2 {[%emt 0:05:29]} Ng4 {[%emt 0:02:04]} 19. Nxg4 {[%emt 0:01:17]} fxg4 {[%emt 0:00:56]} 20. f5 {[%emt 0:07:22]} Qh6 {[%emt 0:00:18]} 21. Bg3 {[%emt 0:00:06]} Bxg3 {[%emt 0:00:58]} 22. hxg3 {[%emt 0:00:05]} b5 {[%emt 0:00:17]} 23. Bc2 {[%emt 0:04:11]} Re8 {[%emt 0:00:50]} 24. Rae1 {[%emt 0:00:32]} b4 {[%emt 0:00:42]} 25. e4 {[%emt 0:07:13]} bxc3 {[%emt 0:00:33]} 26. bxc3 {[%emt 0:00:04]} Rb8 {[%emt 0:00:34]} 27. Rb1 {[%emt 0:01:42]} Rxb1 {[%emt 0:00:33]} 28. Bxb1 {[%emt 0:00:09]} dxe4 {[%emt 0:00:36]} 29. Nxe4 {[%emt 0:04:38]} Bb7 {[%emt 0:00:56]} 30. Rf4 {[%emt 0:10:55]} Bxe4 {[%emt 0:03:17]} 31. Bxe4 {[%emt 0:00:48] normal} 1-0

[Event "-chT Youth Countries 2019"]
[Site "Wuerzburg"]
[Date "2019.10.02"]
[Round "2.4"]
[White "Bakiev, Diyor"]
[Black "Post, Hugo"]
[Result "1/2-1/2"]
[ECO "B22"]
[WhiteElo "2088"]
[BlackElo "2204"]
[Annotator "NA"]
[PlyCount "66"]
[EventDate "2019.10.02"]
[EventType "team-tourn"]
[EventRounds "7"]
[EventCountry "GER"]
[SourceTitle "playchess.com"]
[Source "ChessBase"]
[SourceQuality "1"]
[WhiteTeam "Hessen"]
[BlackTeam "Sachsen-Anhalt"]
[TimeControl "40/5400+30:1800+30"]

1. e4 {[%emt 0:00:00]} c5 {[%emt 0:00:00]} 2. c3 {[%emt 0:00:00]} Nf6 {[%emt 0:00:05]} 3. e5 {[%emt 0:00:00]} Nd5 {[%emt 0:00:07]} 4. d4 {[%emt 0:00:00]} cxd4 {[%emt 0:00:25]} 5. Nf3 {[%emt 0:00:00]} d6 {[%emt 0:00:24]} 6. cxd4 {[%emt 0:00:03]} Nc6 {[%emt 0:00:20]} 7. Bc4 {[%emt 0:00:10]} dxe5 {[%emt 0:00:20]} 8. dxe5 {[%emt 0:00:08]} Ndb4 {[%emt 0:00:21]} 9. Qxd8+ {[%emt 0:00:27]} Nxd8 {[%emt 0:00:08]} 10. Na3 {[%emt 0:00:18]} Bg4 {[%emt 0:03:12]} 11. Nd4 {[%emt 0:05:11]} Ndc6 {[%emt 0:10:57]} 12. Nxc6 {[%emt 0:06:41]} Nxc6 {[%emt 0:00:22]} 13. f4 {[%emt 0:15:29]} a6 {[%emt 0:03:36]} 14. O-O {[%emt 0:01:14]} e6 {[%emt 0:02:25]} 15. Be3 {[%emt 0:03:17]} h5 {[%emt 0:08:02]} 16. Rac1 {[%emt 0:05:51]} h4 {[%emt 0:10:15]} 17. h3 {[%emt 0:02:10]} Bf5 {[%emt 0:00:13]} 18. Rfd1 {[%emt 0:01:59]} Be7 {[%emt 0:03:23]} 19. Be2 {[%emt 0:08:42]} Be4 {[%emt 0:11:51]} 20. Nc4 {[%emt 0:02:12]} O-O {[%emt 0:03:53]} 21. Rd7 {[%emt 0:05:39]} Rad8 {[%emt 0:02:19]} 22. Rcd1 {[%emt 0:04:10]} Bd5 {[%emt 0:05:02]} 23. Rxd8 {[%emt 0:04:10]} Rxd8 {[%emt 0:00:13]} 24. a3 {[%emt 0:01:01]} Bxc4 {[%emt 0:09:29]} 25. Rxd8+ {[%emt 0:00:19]} Bxd8 {[%emt 0:00:02]} 26. Bxc4 {[%emt 0:00:10]} g5 {[%emt 0:00:03]} 27. fxg5 {[%emt 0:06:28]} Nxe5 {[%emt 0:00:26]} 28. Be2 {[%emt 0:00:54]} Be7 {[%emt 0:03:54]} 29. Kf2 {[%emt 0:02:36]} Bd6 {[%emt 0:02:25]} 30. Bf4 {[%emt 0:19:07]} Bc5+ {[%emt 0:02:09]} 31. Be3 {[%emt 0:00:55]} Bd6 {[%emt 0:03:56]} 32. Bf4 {[%emt 0:00:28]} Bc5+ {[%emt 0:13:20]} 33. Be3 {[%emt 0:00:08]} Bd6 {[%emt 0:00:05] normal} 1/2-1/2

[Event "-chT Youth Countries 2019"]
[Site "Wuerzburg"]
[Date "2019.10.02"]
[Round "2.4"]
[White "Boder, Jan"]
[Black "Glinzner, Alva"]
[Result "1-0"]
[ECO "A01"]
[WhiteElo "2087"]
[BlackElo "1897"]
[Annotator "NA"]
[PlyCount "81"]
[EventDate "2019.10.02"]
[EventType "team-tourn"]
[EventRounds "7"]
[EventCountry "GER"]
[SourceTitle "playchess.com"]
[Source "ChessBase"]
[SourceQuality "1"]
[WhiteTeam "Rheinland-Pfalz"]
[BlackTeam "Schleswig-Holstein"]
[TimeControl "40/5400+30:1800+30"]

1. b3 {[%emt 0:00:00]} e5 {[%emt 0:00:00]} 2. Bb2 {[%emt 0:00:00]} d6 {[%emt 0:00:00]} 3. e3 {[%emt 0:02:03]} g6 {[%emt 0:04:46]} 4. f4 {[%emt 0:00:39]} Bg7 {[%emt 0:01:27]} 5. Nf3 {[%emt 0:00:08]} Nc6 {[%emt 0:03:17]} 6. Bc4 {[%emt 0:01:54]} Nh6 {[%emt 0:03:03]} 7. O-O {[%emt 0:01:50]} O-O {[%emt 0:00:26]} 8. fxe5 {[%emt 0:00:45]} dxe5 {[%emt 0:01:27]} 9. e4 {[%emt 0:08:29]} Na5 {[%emt 0:17:40]} 10. Be2 {[%emt 0:16:41]} Qe7 {[%emt 0:07:28]} 11. Ba3 {[%emt 0:06:51]} c5 {[%emt 0:01:31]} 12. Nc3 {[%emt 0:00:13]} Be6 {[%emt 0:05:55]} 13. Rb1 {[%emt 0:02:44]} Nc6 {[%emt 0:02:54]} 14. Nd5 {[%emt 0:10:35]} Qd6 {[%emt 0:04:32]} 15. c4 {[%emt 0:01:53]} f5 {[%emt 0:12:19]} 16. d3 {[%emt 0:00:41]} Rfd8 {[%emt 0:02:29]} 17. Qe1 {[%emt 0:08:12]} a5 {[%emt 0:05:58]} 18. Bc1 {[%emt 0:00:36]} Nf7 {[%emt 0:03:54]} 19. Bd2 {[%emt 0:06:12]} Ra6 {[%emt 0:07:02]} 20. a3 {[%emt 0:01:41]} b6 {[%emt 0:03:35]} 21. b4 {[%emt 0:04:41]} axb4 {[%emt 0:00:13]} 22. axb4 {[%emt 0:00:05]} Nd4 {[%emt 0:02:18]} 23. bxc5 {[%emt 0:04:12]} bxc5 {[%emt 0:01:26]} 24. Nxd4 {[%emt 0:00:05]} exd4 {[%emt 0:00:34]} 25. Bf4 {[%emt 0:03:24]} Be5 {[%emt 0:02:27]} 26. Bxe5 {[%emt 0:01:33]} Qxe5 {[%emt 0:00:53]} 27. Bf3 {[%emt 0:01:47]} Re8 {[%emt 0:02:02]} 28. Qc1 {[%emt 0:08:01]} Bd7 {[%emt 0:02:40]} 29. Qd2 {[%emt 0:00:55]} Rc6 {[%emt 0:01:14]} 30. exf5 {[%emt 0:02:40]} Qxf5 {[%emt 0:00:55]} 31. Ne7+ {[%emt 0:00:56]} Rxe7 {[%emt 0:00:12]} 32. Bxc6 {[%emt 0:00:06]} Qg4 {[%emt 0:00:43]} 33. Bxd7 {[%emt 0:00:56]} Qxd7 {[%emt 0:00:18]} 34. Qf4 {[%emt 0:00:45]} Qc7 {[%emt 0:00:37]} 35. Rb8+ {[%emt 0:01:44]} Kg7 {[%emt 0:00:24]} 36. Qf6+ {[%emt 0:02:31]} Kh6 {[%emt 0:00:04]} 37. Rc8 {[%emt 0:01:11]} Qa7 {[%emt 0:00:46]} 38. Rf8 {[%emt 0:00:27]} Ne5 {[%emt 0:00:54]} 39. Qf4+ {[%emt 0:00:31]} Kg7 {[%emt 0:00:24]} 40. Rg8+ {[%emt 0:00:46]} Kxg8 {[%emt 0:00:13]} 41. Qf8# {normal} 1-0